bitfinex/quotes_BTCUSD_20251113
["timestamp","ask_amount","ask_price","bid_price","bid_amount"]
[1763014893133,0.12858069,103600.0,103580.0,0.53608746]
[1763014893341,0.1574555,103590.0,103580.0,1.09708541]
[1763014893519,0.1574555,103590.0,103580.0,1.14315484]
[1763014894167,0.1574555,103590.0,103580.0,0.59215689]
[1763014894365,0.3152355,103590.0,103570.0,0.22208837]
[1763014894629,0.2723155,103590.0,103580.0,0.56099795]
[1763014894777,0.2235855,103590.0,103580.0,0.56099795]
[1763014895360,0.1574955,103590.0,103580.0,0.56099795]
[1763014896125,0.1145355,103590.0,103580.0,0.56099795]
[1763014896358,0.67553345,103590.0,103570.0,0.21410428]
[1763014896564,0.71849345,103590.0,103570.0,0.344]
[1763014896775,0.67553345,103590.0,103570.0,0.344]
[1763014896978,0.1145355,103590.0,103580.0,0.03649924]
[1763014897198,0.1145355,103590.0,103580.0,0.2295867]
[1763014897413,0.1574955,103590.0,103580.0,0.2295867]
[1763014897620,0.1145355,103590.0,103580.0,0.03649924]
[1763014897829,0.78458345,103590.0,103580.0,0.01649924]
[1763014898279,0.2235855,103590.0,103580.0,0.01649924]
[1763014898486,0.1574955,103590.0,103580.0,0.01649924]
[1763014898661,0.15822258,103590.0,103580.0,0.2095867]
[1763014898894,0.15822258,103590.0,103580.0,0.01649924]
[1763014899105,0.22431258,103590.0,103580.0,0.01649924]
[1763014899310,1.07006935,103590.0,103570.0,0.343]
[1763014899531,0.87627345,103590.0,103570.0,0.51610582]
[1763014899735,0.87627345,103590.0,103570.0,0.51610483]
[1763014899943,0.3152755,103590.0,103570.0,0.323]
[1763014900152,0.87627345,103590.0,103570.0,0.323]
[1763014900352,1.06934238,103590.0,103570.0,0.323]
[1763014900565,0.87627345,103590.0,103570.0,0.51710143]
[1763014901005,0.043,103580.0,103570.0,0.51710143]
[1763014901219,0.043,103580.0,103570.0,0.55289515]
[1763014901642,0.043,103580.0,103570.0,0.55295515]
[1763014901916,0.043,103580.0,103570.0,0.35985372]
[1763014902130,0.76177795,103580.0,103560.0,0.53612415]
[1763014903169,0.76177795,103580.0,103570.0,0.19310611]
[1763014903596,0.76277795,103580.0,103570.0,0.19310611]
[1763014903980,0.76277795,103580.0,103560.0,0.53612415]
[1763014904179,0.76177795,103580.0,103560.0,0.53612415]
[1763014904416,0.04768,103570.0,103560.0,0.51612415]
[1763014904624,0.04768,103570.0,103560.0,0.53612415]
[1763014905015,0.69568795,103580.0,103570.0,0.19310611]
[1763014905422,0.76177795,103580.0,103570.0,0.19310611]
[1763014905598,0.15778,103580.0,103570.0,0.19310611]
[1763014905812,0.20078,103580.0,103570.0,0.19310611]
[1763014906015,0.20078,103580.0,103560.0,0.53712415]
[1763014906236,0.13469,103580.0,103560.0,0.53712415]
[1763014906446,0.13469,103580.0,103570.0,0.19310611]
[1763014906648,0.13469,103580.0,103570.0,0.51610611]
[1763014906854,0.20078,103580.0,103570.0,0.51610611]
[1763014908647,0.20074,103580.0,103570.0,0.51610611]
[1763014908805,0.15778,103580.0,103570.0,0.51610611]
[1763014909203,0.20074,103580.0,103570.0,0.51610611]
[1763014909363,0.15778,103580.0,103570.0,0.51610611]
[1763014909572,0.20074,103580.0,103570.0,0.51610611]
[1763014909817,0.1622155,103590.0,103580.0,0.19308746]
[1763014909986,0.1622155,103590.0,103570.0,0.53616611]
[1763014909987,0.06609,103580.0,103570.0,0.53610611]
[1763014910190,0.15778,103580.0,103570.0,0.51610611]
[1763014910397,0.15826477,103580.0,103570.0,0.54964115]
[1763014911277,0.15826477,103580.0,103570.0,0.56640868]
[1763014911476,0.00048477,103580.0,103570.0,0.56640868]
[1763014911679,0.15826477,103580.0,103570.0,0.56640868]
[1763014912151,0.20118477,103580.0,103570.0,0.56640868]
[1763014912481,0.15826477,103580.0,103570.0,0.56640868]
[1763014912890,0.20118477,103580.0,103570.0,0.56640868]
[1763014913078,0.20118477,103580.0,103570.0,0.08439147]
[1763014913079,0.76218272,103580.0,103570.0,0.08439147]
[1763014913347,0.99868892,103580.0,103570.0,0.08439147]
[1763014913604,0.99868892,103580.0,103570.0,0.0340889]
[1763014914330,0.99868892,103580.0,103570.0,0.0350889]
[1763014917235,0.99868892,103580.0,103570.0,0.001]
[1763014917436,1.32168892,103580.0,103570.0,0.001]
[1763014917678,1.42010927,103580.0,103570.0,0.001]
[1763014918278,1.32168892,103580.0,103570.0,0.001]
[1763014918629,0.23654349,103560.0,103550.0,0.0340889]
[1763014918825,0.90655144,103560.0,103550.0,0.0340889]
[1763014919146,0.99824144,103560.0,103550.0,0.0340889]
[1763014919546,0.80511669,103560.0,103550.0,0.0340889]
[1763014919719,0.24411874,103560.0,103550.0,0.0350889]
[1763014919918,0.75412026,103570.0,103550.0,0.04480607]
[1763014919919,0.09667,103570.0,103550.0,0.04480607]
[1763014920121,0.09667,103570.0,103560.0,0.03407646]
[1763014920422,0.20173,103570.0,103560.0,0.03407646]
[1763014920698,0.9992528,103570.0,103560.0,0.03407646]
[1763014921232,0.19312475,103560.0,103550.0,0.08537903]
[1763014921376,0.9129327,103560.0,103550.0,0.08537903]
[1763014921585,0.95635144,103560.0,103550.0,0.03507646]
[1763014921795,0.95635144,103560.0,103550.0,0.03407646]
[1763014922205,0.76322669,103560.0,103550.0,0.03407646]
[1763014922413,0.15881,103560.0,103550.0,0.22721986]
[1763014922626,0.10514,103560.0,103550.0,0.27752243]
[1763014922817,0.10514,103560.0,103550.0,0.27817086]
[1763014923021,0.15881,103560.0,103550.0,0.08602746]
[1763014923266,0.20181,103560.0,103550.0,0.27917086]
[1763014923643,0.20181,103560.0,103550.0,0.08602746]
[1763014924298,0.10181,103560.0,103550.0,0.03572489]
[1763014924458,0.16695,103560.0,103550.0,0.03572489]
[1763014925042,0.36007475,103560.0,103550.0,0.03572489]
[1763014925247,0.96449144,103560.0,103550.0,0.03572489]
[1763014925468,0.96449144,103560.0,103550.0,0.00164843]
[1763014925680,0.21036874,103560.0,103550.0,0.00164843]
[1763014925931,0.043,103560.0,103550.0,0.28905183]
[1763014926132,0.92593626,103590.0,103560.0,0.19312176]
[1763014926302,0.043,103580.0,103560.0,0.25354799]
[1763014926479,0.88710775,103580.0,103550.0,0.38727546]
[1763014926684,0.06514,103570.0,103550.0,0.2822176]
[1763014926910,0.043,103560.0,103550.0,0.6052176]
[1763014927188,0.26668475,103560.0,103550.0,0.00164843]
[1763014927407,0.35670475,103560.0,103550.0,0.00164843]
[1763014927967,0.96112144,103560.0,103550.0,0.00064843]
[1763014928405,0.40012349,103560.0,103550.0,0.00064843]
[1763014928607,0.96112144,103560.0,103550.0,0.00064843]
[1763014930088,0.40012349,103560.0,103550.0,0.00064843]
[1763014930428,0.19334897,103570.0,103550.0,0.06681843]
[1763014930631,0.39132475,103560.0,103550.0,0.03399843]
[1763014930827,0.99574144,103560.0,103550.0,0.00064843]
[1763014932066,1.55673939,103560.0,103550.0,0.00064843]
[1763014932275,0.19318072,103530.0,103520.0,0.03407646]
[1763014932502,0.94472741,103530.0,103520.0,0.03454207]
[1763014932673,1.03415741,103530.0,103520.0,0.00046561]
[1763014932875,1.29564223,103530.0,103520.0,0.00046561]
[1763014933150,0.19319938,103520.0,103510.0,0.03407646]
[1763014933372,0.23663678,103510.0,103500.0,0.03407646]
[1763014933590,0.23663678,103510.0,103500.0,0.03454253]
[1763014933591,1.30303955,103510.0,103500.0,0.03454253]
[1763014933801,1.30303955,103510.0,103500.0,0.00046607]
[1763014934617,1.62603955,103510.0,103500.0,0.00046607]
[1763014935442,1.58295955,103510.0,103500.0,0.00046607]
[1763014935647,1.74203955,103510.0,103500.0,0.00046607]
[1763014936206,1.74199955,103510.0,103500.0,0.00046607]
[1763014936382,1.58295955,103510.0,103500.0,0.00046607]
[1763014936586,1.74199955,103510.0,103500.0,0.00046607]
[1763014937969,1.74199955,103510.0,103500.0,0.00167905]
[1763014939841,1.58295955,103510.0,103500.0,0.00167905]
[1763014940050,1.74199955,103510.0,103500.0,0.00167905]
[1763014940254,1.74195955,103510.0,103500.0,0.00167905]
[1763014940770,0.91947678,103510.0,103500.0,0.00167905]
[1763014941004,1.74195955,103510.0,103500.0,0.00167905]
[1763014941698,1.58295955,103510.0,103500.0,0.00167905]
[1763014941919,1.74195955,103510.0,103500.0,0.00167905]
[1763014942143,1.58295955,103510.0,103500.0,0.00167905]
[1763014942365,0.91947678,103510.0,103500.0,0.00167905]
[1763014942840,0.43705804,103510.0,103500.0,0.00167905]
[1763014943785,0.43747678,103510.0,103500.0,0.00167905]
[1763014944013,0.48047678,103510.0,103500.0,0.00167905]
[1763014945163,0.43747678,103510.0,103500.0,0.00167905]
[1763014945392,0.48047678,103510.0,103500.0,0.00167905]
[1763014946273,1.30295955,103510.0,103500.0,0.00167905]
[1763014946521,0.48047678,103510.0,103500.0,0.00167905]
[1763014949262,0.43747678,103510.0,103500.0,0.00167905]
[1763014949495,0.48043678,103510.0,103500.0,0.00167905]
[1763014950176,0.43747678,103510.0,103500.0,0.00167905]
[1763014950418,0.48039678,103510.0,103500.0,0.00167905]
[1763014951614,1.30287955,103510.0,103500.0,0.00167905]
[1763014953437,1.62587955,103510.0,103500.0,0.00167905]
[1763014953669,1.62587955,103510.0,103460.0,0.03447646]
[1763014953670,0.23670763,103480.0,103460.0,0.03447646]
[1763014953910,0.18949,103470.0,103460.0,0.03494273]
[1763014954134,0.18949,103470.0,103460.0,0.35794273]
[1763014955058,0.38278274,103470.0,103460.0,0.03494273]
[1763014955283,0.18949,103470.0,103460.0,0.03494273]
[1763014955503,0.38278274,103470.0,103460.0,0.00086627]
[1763014956448,0.42620148,103470.0,103460.0,0.00086627]
[1763014956683,1.24868425,103470.0,103460.0,0.00086627]
[1763014956924,0.42620148,103470.0,103460.0,0.00086627]
[1763014959416,0.42616148,103470.0,103460.0,0.00086627]
[1763014959632,0.38328148,103470.0,103460.0,0.00086627]
[1763014959855,0.42616148,103470.0,103460.0,0.00183728]
[1763014960071,0.38328148,103470.0,103460.0,0.00183728]
[1763014960303,0.18998874,103470.0,103460.0,0.00183728]
[1763014960524,0.42616148,103470.0,103460.0,0.00183728]
[1763014961194,0.23286874,103470.0,103460.0,0.00183728]
[1763014961418,0.42616148,103470.0,103460.0,0.00183728]
[1763014961658,0.04797,103480.0,103470.0,0.19328738]
[1763014961928,0.04288,103480.0,103470.0,0.25289738]
[1763014962148,0.04797,103490.0,103480.0,0.19327406]
[1763014962356,0.09089,103490.0,103470.0,1.16881015]
[1763014962582,0.09089,103490.0,103470.0,0.25289738]
[1763014962792,0.09089,103490.0,103480.0,0.19327406]
[1763014962999,0.1236,103490.0,103470.0,0.34153738]
[1763014963212,0.04797,103500.0,103480.0,1.19136683]
[1763014963426,0.04797,103500.0,103480.0,0.36922406]
[1763014963427,0.04288,103490.0,103480.0,0.36922406]
[1763014963839,0.04288,103490.0,103480.0,1.19170683]
[1763014964047,0.04755873,103510.0,103490.0,0.19325538]
[1763014964267,0.04288,103500.0,103490.0,0.04911]
[1763014964467,0.04288,103500.0,103490.0,0.22236538]
[1763014964893,0.04755873,103510.0,103500.0,0.19323671]
[1763014965102,0.04356873,103510.0,103500.0,0.25509671]
[1763014965307,0.12303873,103510.0,103490.0,1.14765815]
[1763014965507,0.04292,103500.0,103490.0,1.37722815]
[1763014965737,0.04292,103500.0,103490.0,1.43970815]
[1763014965943,0.04292,103500.0,103490.0,0.60722538]
[1763014966063,0.04292,103500.0,103490.0,1.43017442]
[1763014966302,0.04292,103500.0,103490.0,1.52328442]
[1763014966509,0.03230873,103510.0,103500.0,0.19323671]
[1763014966726,0.07518873,103510.0,103500.0,0.19323671]
[1763014966924,0.07518873,103510.0,103500.0,0.19417671]
[1763014967388,0.03230873,103510.0,103500.0,0.19417671]
[1763014967584,0.00064873,103510.0,103500.0,0.19417671]
[1763014967759,0.04352873,103510.0,103500.0,1.11008948]
[1763014968021,0.00064873,103510.0,103500.0,1.11008948]
[1763014968184,0.04352873,103510.0,103500.0,1.13008948]
[1763014968742,0.04352873,103510.0,103500.0,1.45308948]
[1763014969171,0.00064873,103510.0,103500.0,1.45308948]
[1763014969392,0.04352873,103510.0,103500.0,1.45308948]
[1763014970220,0.04352873,103510.0,103500.0,1.45408948]
[1763014970912,0.00064873,103510.0,103500.0,1.45408948]
[1763014971364,0.00064873,103510.0,103500.0,1.45308948]
[1763014972633,0.00064873,103510.0,103500.0,1.56308948]
[1763014975568,0.00164873,103510.0,103500.0,1.56308948]
[1763014976158,0.00164873,103510.0,103500.0,1.59716594]
[1763014977053,0.00164873,103510.0,103500.0,1.56308948]
[1763014977251,0.00164873,103510.0,103500.0,1.59716594]
[1763014977901,0.00164873,103510.0,103500.0,0.77468317]
[1763014978103,0.00164873,103510.0,103500.0,1.59716594]
[1763014979345,0.00164873,103510.0,103500.0,1.61716594]
[1763014979758,0.00164873,103510.0,103500.0,1.59716594]
[1763014980668,0.00164873,103510.0,103500.0,1.62269048]
[1763014980895,0.00164873,103510.0,103500.0,1.67653225]
[1763014981079,0.00164873,103510.0,103500.0,1.72287089]
[1763014981542,0.00164873,103510.0,103500.0,1.69100771]
[1763014982543,0.00164873,103510.0,103500.0,1.71653859]
[1763014982925,0.00164873,103510.0,103500.0,1.69100771]
[1763014983705,0.37889902,103560.0,103530.0,0.00965903]
[1763014983969,0.04288,103560.0,103550.0,1.08796617]
[1763014984200,0.12994,103570.0,103550.0,0.3675334]
[1763014984201,0.04797,103570.0,103550.0,0.3675334]
[1763014984435,0.09085,103570.0,103550.0,0.3675334]
[1763014984667,0.09085,103570.0,103560.0,0.21282475]
[1763014984668,0.04797,103570.0,103560.0,0.21282475]
[1763014984903,0.04288,103570.0,103560.0,0.21329102]
[1763014985159,0.04288,103570.0,103560.0,0.02016627]
[1763014985394,0.12501,103580.0,103560.0,0.21329102]
[1763014985611,0.16842874,103580.0,103570.0,0.19310611]
[1763014985845,0.12933874,103580.0,103570.0,0.22159611]
[1763014986070,0.1625055,103590.0,103580.0,0.19308746]
[1763014986278,0.1145355,103590.0,103580.0,0.25291746]
[1763014986486,0.1574155,103590.0,103580.0,0.25291746]
[1763014986699,0.1145355,103590.0,103580.0,0.25291746]
[1763014986972,0.1574155,103590.0,103580.0,0.33496746]
[1763014987185,0.1574155,103590.0,103580.0,0.35496746]
[1763014987586,0.1574155,103590.0,103580.0,0.41456805]
[1763014988467,0.1574155,103590.0,103580.0,0.38049159]
[1763014989459,0.45417365,103590.0,103580.0,0.02552413]
[1763014989658,0.53614365,103590.0,103580.0,0.001]
[1763014990280,0.15935483,103590.0,103580.0,0.25391746]
[1763014990531,0.11647483,103590.0,103580.0,1.17845023]
[1763014991216,0.11647483,103590.0,103580.0,1.20397436]
[1763014991461,0.11647483,103590.0,103580.0,1.17845023]
[1763014991670,0.11647483,103590.0,103580.0,1.21031341]
[1763014992110,0.52992239,103590.0,103580.0,0.001]
[1763014992541,0.52938365,103590.0,103580.0,0.001]
[1763014993435,0.11647483,103590.0,103580.0,1.21879335]
[1763014993656,0.11647483,103590.0,103580.0,1.22879335]
[1763014993876,0.11647483,103590.0,103580.0,1.14674335]
[1763014995785,0.11647483,103590.0,103580.0,1.09691335]
[1763014996613,0.17518483,103590.0,103580.0,1.09691335]
[1763014997087,0.11647483,103590.0,103580.0,1.09691335]
[1763014997272,0.11647483,103590.0,103580.0,1.15674335]
[1763014997692,0.11647483,103590.0,103580.0,1.23879335]
[1763015000230,0.11647483,103590.0,103580.0,1.21879335]
[1763015000433,0.11647483,103590.0,103580.0,1.23879335]
[1763015005359,0.11647483,103590.0,103580.0,1.15674335]
[1763015005563,0.11647483,103590.0,103580.0,1.13674335]
[1763015006080,0.11647483,103590.0,103580.0,0.38383]
[1763015006268,0.45022365,103590.0,103580.0,0.001]
[1763015006471,0.11647483,103590.0,103580.0,0.70270589]
[1763015006697,0.21806483,103590.0,103580.0,0.62065589]
[1763015006898,0.49310365,103590.0,103580.0,0.001]
[1763015007455,0.39310365,103590.0,103580.0,0.56082589]
[1763015008335,0.20003483,103590.0,103580.0,0.75391335]
[1763015008768,0.20003483,103590.0,103580.0,0.19408746]
[1763015009379,0.01647483,103590.0,103580.0,1.21101335]
[1763015009595,0.01647483,103590.0,103580.0,1.18226748]
[1763015009803,0.05943483,103590.0,103580.0,1.16226748]
[1763015010008,0.05943483,103590.0,103580.0,1.23653748]
[1763015010213,0.05943483,103590.0,103580.0,1.29061394]
[1763015011117,0.01647483,103590.0,103580.0,1.31884299]
[1763015011317,0.01647483,103590.0,103580.0,1.29331886]
[1763015012206,0.01647483,103590.0,103580.0,1.19081981]
[1763015012610,0.01647483,103590.0,103580.0,1.26508981]
[1763015013233,0.01647483,103590.0,103580.0,1.30131592]
[1763015013445,0.01647483,103590.0,103580.0,1.28131592]
[1763015013602,0.01647483,103590.0,103580.0,1.39131592]
[1763015014372,0.01647483,103590.0,103580.0,1.34101335]
[1763015015177,0.01647483,103590.0,103580.0,1.3706449]
[1763015015513,0.01647483,103590.0,103580.0,1.43791073]
[1763015016168,0.01647483,103590.0,103580.0,1.42827918]
[1763015016368,0.01647483,103590.0,103580.0,1.45936054]
[1763015016895,0.01647483,103590.0,103580.0,1.50232054]
[1763015017256,0.01647483,103590.0,103580.0,1.43505471]
[1763015017675,1e-08,103590.0,103580.0,2.08006632]
[1763015018106,1e-08,103590.0,103580.0,1.48915907]
[1763015018301,1e-08,103590.0,103580.0,1.51784949]
[1763015018733,1e-08,103590.0,103580.0,1.51684949]
[1763015019382,0.0118207,103600.0,103590.0,0.7421166]
[1763015019598,0.0118207,103600.0,103590.0,1.86176838]
[1763015019802,0.0118207,103600.0,103590.0,1.88012607]
[1763015020010,0.0118207,103600.0,103590.0,1.96531179]
[1763015020534,0.0118207,103600.0,103590.0,1.88012607]
[1763015023384,0.0002,103610.0,103600.0,1.68570196]
[1763015023593,0.0002,103610.0,103600.0,1.91605839]
[1763015023808,0.0002,103610.0,103600.0,1.94452472]
[1763015024426,0.0012,103610.0,103600.0,1.94452472]
[1763015024593,0.0012,103610.0,103600.0,1.94499099]
[1763015025359,1e-08,103610.0,103600.0,1.98840973]
[1763015025566,0.0108434,103620.0,103610.0,0.54899788]
[1763015025774,0.0108434,103620.0,103610.0,0.79757444]
[1763015025985,0.01157017,103620.0,103610.0,1.30488334]
[1763015026604,0.01157017,103620.0,103610.0,1.23266877]
[1763015028446,0.01157017,103620.0,103610.0,1.21266877]
[1763015028647,0.01157017,103620.0,103610.0,1.32060708]
[1763015029024,0.01157017,103620.0,103610.0,1.39376251]
[1763015029230,0.01157017,103620.0,103610.0,1.37376251]
[1763015029431,0.01157017,103620.0,103610.0,1.39376251]
[1763015029631,0.01257017,103620.0,103610.0,1.39376251]
[1763015031642,1e-08,103620.0,103610.0,2.04205679]
[1763015031836,1e-08,103620.0,103610.0,2.00700713]
[1763015032050,1e-08,103620.0,103610.0,1.44718124]
[1763015032255,1e-08,103620.0,103610.0,1.98700713]
[1763015032422,5.0,103640.0,103630.0,0.5559943]
[1763015032625,5.0,103640.0,103630.0,1.34087605]
[1763015032927,5.0432,103640.0,103630.0,1.34087605]
[1763015033760,5.0,103640.0,103630.0,1.34087605]
[1763015033959,5.0432,103640.0,103630.0,1.34087605]
[1763015034769,5.0432,103640.0,103630.0,1.89677204]
[1763015034770,5.0,103640.0,103630.0,1.89677204]
[1763015034954,5.0,103640.0,103630.0,2.25225701]
[1763015035163,5.0,103640.0,103630.0,2.20136218]
[1763015035776,5.0,103640.0,103630.0,2.28798092]
[1763015035979,5.0,103640.0,103630.0,2.32486391]
[1763015036206,5.0,103640.0,103630.0,2.24456218]
[1763015036410,5.0,103640.0,103630.0,2.31228216]
[1763015036610,5.0,103640.0,103630.0,2.34916515]
[1763015037612,4.49838622,103640.0,103630.0,2.32486391]
[1763015038026,4.49887056,103640.0,103630.0,2.32486391]
[1763015038464,3.86236253,103640.0,103630.0,3.94531346]
[1763015038669,3.68753985,103640.0,103630.0,2.32486391]
[1763015038872,3.68753985,103640.0,103630.0,2.32694533]
[1763015039083,3.68753985,103640.0,103630.0,2.64456218]
[1763015039288,3.24910931,103640.0,103630.0,4.20997769]
[1763015039498,3.24910931,103640.0,103630.0,2.73584094]
[1763015039904,3.24910931,103640.0,103630.0,2.65898091]
[1763015040119,3.24910931,103640.0,103630.0,2.69898091]
[1763015040324,3.24910931,103640.0,103630.0,2.68898092]
[1763015040779,3.24910931,103640.0,103630.0,2.69898091]
[1763015041413,3.24910931,103640.0,103630.0,2.68898092]
[1763015041618,3.24910931,103640.0,103630.0,1.75139319]
[1763015041838,3.24910931,103640.0,103630.0,1.40839319]
[1763015042090,3.24910931,103640.0,103630.0,1.73139319]
[1763015042517,3.24910931,103640.0,103630.0,1.73039319]
[1763015042932,3.24910931,103640.0,103630.0,1.30587218]
[1763015043146,3.24754999,103640.0,103630.0,1.30587218]
[1763015043371,3.37899999,103640.0,103630.0,0.60867463]
[1763015043553,3.29758999,103640.0,103630.0,0.64251334]
[1763015043762,3.24754999,103640.0,103630.0,0.88907764]
[1763015043965,3.24754999,103640.0,103630.0,1.21207764]
[1763015044459,3.24754999,103640.0,103630.0,1.01908334]
[1763015044669,3.24754999,103640.0,103630.0,1.21207764]
[1763015044895,3.44052567,103640.0,103630.0,0.11991871]
[1763015045135,3.59590567,103640.0,103630.0,0.03789399]
[1763015045357,3.40392999,103640.0,103630.0,0.33551]
[1763015045583,3.64006567,103640.0,103630.0,0.03789925]
[1763015046057,3.63906567,103640.0,103630.0,0.02538925]
[1763015046923,3.63906567,103640.0,103620.0,0.02538925]
[1763015046924,0.1929943,103630.0,103620.0,0.02538925]
[1763015047146,0.3149743,103630.0,103620.0,0.02538925]
[1763015047656,0.3762843,103630.0,103620.0,0.02538925]
[1763015048504,0.3762843,103630.0,103620.0,0.03383871]
[1763015049147,0.2822143,103630.0,103620.0,0.03483871]
[1763015049356,0.3762843,103630.0,103620.0,0.03483871]
[1763015049559,0.41970304,103630.0,103620.0,0.03483871]
[1763015050035,0.41970304,103630.0,103620.0,0.06026764]
[1763015050907,0.41970304,103630.0,103620.0,0.02642893]
[1763015051328,0.97860653,103630.0,103620.0,0.02642893]
[1763015051538,0.97860653,103630.0,103620.0,0.02542893]
[1763015052161,0.97860653,103630.0,103620.0,0.05942893]
[1763015052373,0.97884873,103630.0,103620.0,0.05942893]
[1763015053221,1.07665781,103630.0,103620.0,0.05942893]
[1763015053451,0.41994524,103630.0,103620.0,0.05942893]
[1763015053640,1.07665781,103630.0,103620.0,0.034]
[1763015054302,1.11973781,103630.0,103620.0,0.034]
[1763015054512,1.02192873,103630.0,103620.0,0.034]
[1763015054722,1.11973781,103630.0,103620.0,0.034]
[1763015054932,1.38157073,103630.0,103620.0,0.034]
[1763015056066,0.32587524,103630.0,103620.0,0.034]
[1763015056272,0.0002422,103630.0,103620.0,0.09704]
[1763015056495,0.2363165,103630.0,103620.0,0.09704]
[1763015056722,0.2796365,103630.0,103620.0,0.09704]
[1763015057592,0.0002422,103630.0,103620.0,0.29005293]
[1763015057800,0.0433222,103630.0,103620.0,0.37957293]
[1763015057955,0.0433222,103630.0,103620.0,0.18656]
[1763015058154,0.0002422,103630.0,103620.0,0.37957293]
[1763015058351,0.0002422,103630.0,103620.0,0.39957293]
[1763015058625,0.0433222,103630.0,103620.0,0.39957293]
[1763015059019,0.0433222,103630.0,103620.0,0.42500186]
[1763015059240,0.0002422,103630.0,103620.0,1.60257698]
[1763015059432,0.0002422,103630.0,103620.0,1.67687124]
[1763015059643,0.0002422,103630.0,103620.0,1.75303253]
[1763015060265,0.0002422,103630.0,103620.0,1.77000926]
[1763015061534,0.0002422,103630.0,103620.0,1.85179713]
[1763015062330,1e-08,103630.0,103620.0,1.17756072]
[1763015062532,1e-08,103630.0,103620.0,1.99829713]
[1763015062894,1e-08,103630.0,103620.0,2.06679053]
[1763015063114,1e-08,103630.0,103620.0,2.00907054]
[1763015063317,2.68065723,103640.0,103630.0,1.53917944]
[1763015063521,2.53880884,103640.0,103630.0,1.63300431]
[1763015063727,2.53880884,103640.0,103630.0,1.65145509]
[1763015063926,2.58192884,103640.0,103630.0,0.06828487]
[1763015064266,2.77490452,103640.0,103630.0,0.01251]
[1763015064465,2.64323884,103640.0,103630.0,0.03790202]
[1763015064668,2.77490452,103640.0,103630.0,0.03790202]
[1763015064846,2.58192884,103640.0,103630.0,0.01251]
[1763015065102,2.77490452,103640.0,103630.0,0.01251]
[1763015065343,2.77490452,103640.0,103630.0,0.10094202]
[1763015065535,2.58192884,103640.0,103630.0,0.21243202]
[1763015065905,2.77490452,103640.0,103630.0,0.21243202]
[1763015066262,0.1929943,103630.0,103620.0,0.39490202]
[1763015066552,0.2158443,103630.0,103620.0,0.39490202]
[1763015066752,0.2771543,103630.0,103620.0,0.39490202]
[1763015066912,0.2771543,103630.0,103620.0,0.05939202]
[1763015067117,0.3712243,103630.0,103620.0,0.05939202]
[1763015067315,1.19196071,103630.0,103620.0,0.06039202]
[1763015067500,0.3712243,103630.0,103620.0,0.06039202]
[1763015068110,0.2771543,103630.0,103620.0,0.06039202]
[1763015068379,3.68971093,103640.0,103620.0,0.20286202]
[1763015068380,2.77490452,103640.0,103620.0,0.20286202]
[1763015068587,2.77490452,103640.0,103620.0,0.39587475]
[1763015068815,2.77490452,103640.0,103630.0,0.02539202]
[1763015069041,2.77514667,103640.0,103630.0,0.02539202]
[1763015069251,2.77514667,103640.0,103630.0,0.07468202]
[1763015069451,2.77526667,103640.0,103630.0,0.02539202]
[1763015070084,2.53905099,103640.0,103630.0,0.02539202]
[1763015070314,2.77526667,103640.0,103630.0,0.02539202]
[1763015071271,2.58229099,103640.0,103630.0,0.26767632]
[1763015071471,2.58233099,103640.0,103630.0,0.38678116]
[1763015071681,2.58233099,103640.0,103630.0,0.71078116]
[1763015072544,2.53905099,103640.0,103630.0,1.53151757]
[1763015073130,2.53905099,103640.0,103630.0,0.71078116]
[1763015073532,2.53905099,103640.0,103630.0,0.72768917]
[1763015074146,2.53905099,103640.0,103630.0,1.52842558]
[1763015074353,2.53905099,103640.0,103630.0,0.71591672]
[1763015074555,2.52336147,103640.0,103630.0,0.71591672]
[1763015075180,2.52336147,103640.0,103630.0,0.82591672]
[1763015075440,2.52336147,103640.0,103630.0,0.89364543]
[1763015075639,2.52336147,103640.0,103630.0,0.88364543]
[1763015075967,2.52336147,103640.0,103630.0,1.74762184]
[1763015076176,2.52336147,103640.0,103630.0,1.74662184]
[1763015076391,2.52336147,103640.0,103630.0,0.92588543]
[1763015076625,2.52336147,103640.0,103630.0,1.74762184]
[1763015077088,2.52336147,103640.0,103630.0,1.74662184]
[1763015077295,2.52336147,103640.0,103630.0,1.75662184]
[1763015077502,2.52336147,103640.0,103630.0,1.74662184]
[1763015077714,2.52336147,103640.0,103630.0,1.76662184]
[1763015078135,2.52336147,103640.0,103630.0,0.94588543]
[1763015078338,1.99338504,103640.0,103630.0,1.72231185]
[1763015078548,1.83800414,103640.0,103630.0,1.81004056]
[1763015078990,1.3782708,103640.0,103630.0,1.81004056]
[1763015079204,1.3782708,103640.0,103630.0,1.81104056]
[1763015079408,0.89670391,103640.0,103630.0,1.74331185]
[1763015079637,0.72369169,103640.0,103630.0,1.7652231]
[1763015079841,0.71084437,103640.0,103630.0,1.7642231]
[1763015080093,0.71084437,103640.0,103630.0,1.7652231]
[1763015080306,0.02946045,103640.0,103630.0,1.7652231]
[1763015080538,0.00658623,103660.0,103650.0,0.55595706]
[1763015080745,0.00658623,103660.0,103650.0,0.69585112]
[1763015080945,0.00658623,103660.0,103650.0,1.22486253]
[1763015081559,0.00658623,103660.0,103650.0,1.17417847]
[1763015081695,0.00658623,103660.0,103650.0,1.17464474]
[1763015082308,0.00658623,103660.0,103650.0,0.79367118]
[1763015082511,0.00658623,103660.0,103650.0,1.18123097]
[1763015082710,0.00658623,103660.0,103650.0,1.23191503]
[1763015084007,0.00658623,103660.0,103650.0,1.21191503]
[1763015084235,0.00658623,103660.0,103650.0,1.29533375]
[1763015084698,0.00658623,103660.0,103650.0,1.24464969]
[1763015085621,0.00658623,103660.0,103650.0,1.64664969]
[1763015085848,0.00136194,103660.0,103650.0,1.64664969]
[1763015086290,0.00184615,103660.0,103650.0,1.64664969]
[1763015086515,1e-08,103660.0,103650.0,1.64664969]
[1763015086739,1e-08,103660.0,103650.0,1.6943784]
[1763015087414,1e-08,103660.0,103650.0,1.7673175]
[1763015087939,1e-08,103660.0,103650.0,1.64093841]
[1763015088181,1e-08,103660.0,103650.0,1.19315095]
[1763015088638,1e-08,103660.0,103650.0,1.59315095]
[1763015089123,1e-08,103660.0,103650.0,1.19315095]
[1763015089773,1e-08,103660.0,103650.0,1.18315096]
[1763015090205,1e-08,103660.0,103650.0,1.25087967]
[1763015090412,1e-08,103660.0,103650.0,1.18315096]
[1763015091014,1e-08,103660.0,103650.0,1.25645903]
[1763015091225,1e-08,103660.0,103650.0,1.18315096]
[1763015091440,1e-08,103660.0,103650.0,0.85015097]
[1763015091682,1e-08,103660.0,103650.0,0.91761827]
[1763015091890,1e-08,103660.0,103650.0,1.24061827]
[1763015092103,1e-08,103660.0,103650.0,0.89761827]
[1763015092313,1e-08,103660.0,103650.0,0.85425827]
[1763015092520,1e-08,103660.0,103650.0,0.66930121]
[1763015092735,1e-08,103660.0,103650.0,0.0537625]
[1763015092942,0.25591846,103660.0,103650.0,0.09779919]
[1763015093386,0.25591846,103660.0,103650.0,0.05208919]